Cogmind - Beta 11 @@@ ROGUE MODE // 2022.03.25 @ 18:02:51 Player: maxwell Result: Destroyed self with Grenade Launcher Performance ------------- Evolutions (0) 0 Regions Visited (4) 800 Robots Destroyed (36) 180 Value Destroyed (846) 846 Prototype IDs (0) 0 Alien Tech Used (0) 0 Bonus (-145) -145 TOTAL SCORE: 1681 Bonus ------- Friendly Fire -145 Cogmind --------- Core Integrity 0/250 Matter 280/300 Energy 100/100 System Corruption 0% Temperature Cool (0) Movement Core (1400) Ox27 Location -9/Mines Parts ------- > --- POWER (1) -------- (None) > --- PROPULSION (2) --- (None) > --- UTILITY (2) ------ Huge Storage Unit Core Shielding > --- WEAPON (2) ------- Light Assault Rifle > --- INVENTORY (25) --- Light Ion Engine Carbon-fiber Leg Large Storage Unit Huge Storage Unit Huge Storage Unit Humpback High-capacity Matter Pod (200) Structural Scanner Hacking Suite Beamcaster Beam Cannon Light Assault Rifle Light Assault Rifle Light Assault Rifle Light Assault Rifle Makeshift Shrapnel Gun Mining Claw Peak State ------------ > --- POWER ------------ Light Nuclear Core > --- PROPULSION ------- Compact Wheel Compact Wheel > --- UTILITY ---------- Huge Storage Unit Core Shielding > --- WEAPON ----------- Light Assault Rifle Mining Claw > --- INVENTORY -------- Light Ion Engine Carbon-fiber Leg Large Storage Unit Huge Storage Unit Huge Storage Unit High-capacity Matter Pod Structural Scanner Hacking Suite Beamcaster Beam Cannon Light Assault Rifle Light Assault Rifle Light Assault Rifle Light Assault Rifle Grenade Launcher [Rating: 11] Favorites ----------- Power Light Nuclear Core Engine Light Ion Engine Power Core Light Nuclear Core Propulsion Light Treads Treads Light Treads Leg Aluminum Leg Wheel Compact Wheel Utility Huge Storage Unit Device Structural Scanner Storage Huge Storage Unit Protection Core Shielding Weapon Mining Claw Energy Gun EM Pulse Gun Ballistic Gun Light Assault Rifle Launcher Grenade Launcher Slashing Weapon Mining Claw Build | -11 -10 -10 -10 -9 ------- Run | Scr Mat Min Exi Min Slots Evolved . | . . . . . Power . | . . . . . Propulsion . | . . . . . Utility . | . . . . . Weapon . | . . . . . Parts Attached 26 | 6 13 6 . 1 Power 3 | 1 1 1 . . Engine 2 | 1 1 . . . Core 1 | . . 1 . . Reactor . | . . . . . Propulsion 5 | 2 3 . . . Treads 2 | 2 . . . . Leg 1 | . 1 . . . Wheel 2 | . 2 . . . Hover . | . . . . . Flight . | . . . . . Utility 5 | 1 4 . . . Device 1 | . 1 . . . Storage 3 | 1 2 . . . Processor . | . . . . . Hackware . | . . . . . Protection 1 | . 1 . . . Artifact . | . . . . . Weapon 13 | 2 5 5 . 1 Energy Gun 2 | 1 1 . . . Energy Cannon . | . . . . . Ballistic Gun 5 | 1 1 3 . . Ballistic Cannon . | . . . . . Launcher 3 | . 1 1 . 1 Special Weapon . | . . . . . Impact Weapon . | . . . . . Slashing Weapon 3 | . 2 1 . . Piercing Weapon . | . . . . . Special Melee Weapon . | . . . . . Unidentified Prototypes . | . . . . . Parts Lost 12 | . 7 1 . 4 Power 3 | . 1 1 . 1 Propulsion 4 | . 2 . . 2 Utility 1 | . 1 . . . Weapon 4 | . 3 . . 1 Highest Loss Streak 4 | . 2 1 . 4 To Critical Strikes . | . . . . . Average Slot Usage (%) 83 | . 73 99 100 71 Engine 3 | . 4 1 . . Core 5 | . . 12 14 . Treads 14 | . 24 . . . Wheel 12 | . 2 28 28 14 Storage 14 | . 14 14 14 14 Protection 5 | . . 14 14 14 Energy Gun 2 | . 3 . . . Ballistic Gun 8 | . 5 13 14 14 Launcher 5 | . 4 7 . 14 Slashing Weapon 9 | . 11 6 14 . Naked Turns . | . . . . . Heaviest Build 90 | 12 90 90 89 . Greatest Support 40 | 40 40 32 32 . Greatest Overweight (x) 7 | . 7 2 2 . Average Overweight (x) 1 | . . 2 2 . Largest Inventory Capacity 25 | 8 25 25 25 25 Average Capacity 17 | 6 12 25 25 25 Most Carried 18 | 1 13 16 18 18 Average Carried 7 | . 3 14 16 18 Final Capacity 25 | 8 25 25 25 25 Final Carried 18 | 1 13 16 18 18 Class Distribution -------------------- 100% | Mutant Dominant Class ---------------- Mutant | -10/Materials Mutant | -10/Mines Mutant | -10/Exiles Mutant | -9/Mines Resources | -11 -10 -10 -10 -9 ----------- Run | Scr Mat Min Exi Min Matter Collected 832 | 167 540 125 . . Remotely . | . . . . . Salvage Created 997 | . 769 140 . 88 Parts 72 | . 55 12 . 5 Haulers Intercepted 1 | . 1 . . . Recyclers Shooed . | . . . . . Parts Field Recycled . | . . . . . Retrieved Matter . | . . . . . Parts Self-Destructed . | . . . . . Prevented . | . . . . . Kills | -11 -10 -10 -10 -9 ------- Run | Scr Mat Min Exi Min Combat Hostiles Destroyed 24 | . 16 5 . 3 Melee 2 | . 2 . . . Guns 5 | . 5 . . . AOE 17 | . 9 5 . 3 Classes Destroyed 10 | . 9 . . 1 Worker 2 | . 2 . . . Builder 1 | . 1 . . . Tunneler 1 | . 1 . . . Hauler 1 | . 1 . . . Recycler 2 | . 2 . . . Operator 1 | . 1 . . . Watcher 3 | . 3 . . . Swarmer 6 | . 3 3 . . Grunt 17 | . 13 2 . 2 Duelist 1 | . . . . 1 Thug 1 | . . 1 . . Best Kill Streak 6 | . 6 3 . 3 Combat Bots Only 4 | . 4 3 . 3 Max Kills in Single Turn 3 | . 2 3 . 2 Gunslinging . | . . . . . Exploded 3 | . 2 3 . 2 Melee 1 | . 1 . . . Uniques/NPCs Destroyed . | . . . . . Combat | -11 -10 -10 -10 -9 -------- Run | Scr Mat Min Exi Min Damage Taken 1070 | . 821 61 . 188 Core 254 | . 120 6 . 128 Absorbed by Shields . | . . . . . Redirected to Shielding 24 | . . 1 . 23 Core Remaining (%) 100 | 100 . . . . Volleys Fired 46 | . 39 4 . 3 Largest 2 | . 2 1 . 1 Hottest 60 | . 60 30 . 30 Shots Fired 74 | . 67 4 . 3 Gun 57 | . 57 . . . Cannon . | . . . . . Launcher 17 | . 10 4 . 3 Special . | . . . . . Kinetic 29 | . 29 . . . Thermal . | . . . . . Explosive 17 | . 10 4 . 3 Electromagnetic 28 | . 28 . . . Robot Hit Streak 13 | . 13 7 . 10 Robot Miss Streak 2 | . 2 . . . Penetration Max . | . . . . . Secondary Targets . | . . . . . Shots Hit Robots 66 | . 59 4 . 3 Core Hits 52 | . 37 10 . 5 Critical Kills . | . . . . . Critical Parts Destroyed . | . . . . . Critical Strikes . | . . . . . Melee Attacks 27 | . 26 1 . . Impact . | . . . . . Slashing 27 | . 26 1 . . Piercing . | . . . . . Sneak Attacks 7 | . 6 1 . . Combat Hostiles . | . . . . . Follow-up Attacks 1 | . 1 . . . Damage Inflicted 2211 | . 1629 301 . 281 Guns 530 | . 530 . . . Cannons . | . . . . . Explosions 1155 | . 618 256 . 281 Melee 510 | . 465 45 . . Ramming 16 | . 16 . . . Kinetic 244 | . 244 . . . Thermal 150 | . 150 . . . Explosive 1005 | . 468 256 . 281 Electromagnetic 286 | . 286 . . . Impact . | . . . . . Slashing 510 | . 465 45 . . Piercing . | . . . . . Highest Corruption . | . . . . . Average Corruption . | . . . . . Corruption Purged . | . . . . . Corruption Blocked . | . . . . . Overload Shots . | . . . . . Overflow Damage 77 | . 31 . . 46 Projectiles . | . . . . . Explosions 77 | . 31 . . 46 Melee . | . . . . . Knockbacks . | . . . . . Impact . | . . . . . Kinetic . | . . . . . Secondary . | . . . . . Self-Inflicted Damage 193 | . 73 11 . 109 Shots 7 | . 2 2 . 3 Rammed 3 | . 3 . . . Targets Rammed 3 | . 3 . . . Kicked . | . . . . . Crushed . | . . . . . Highest Temperature 36 | . 36 7 . . Average Temperature 15 | . 16 3 . . Received Heat Transfer 405 | . 348 45 . 12 Siege Activations . | . . . . . Robots Corrupted . | . . . . . Combat Hostiles . | . . . . . Parts Fried . | . . . . . Impact Corruptions . | . . . . . Robots Melted . | . . . . . Combat Hostiles . | . . . . . Parts Melted 1 | . 1 . . . Heat Transferred 200 | . 200 . . . Parts Sabotaged . | . . . . . Parts Stolen . | . . . . . Parts Stripped . | . . . . . Power Chain Reactions 2 | . 2 . . . Missiles Intercepted . | . . . . . Alert | -11 -10 -10 -10 -9 ------- Run | Scr Mat Min Exi Min Peak Influence 408 | . 408 273 . 41 Initial 88 | . . 88 . . Average 226 | . 265 185 . 26 Maximum Alert Level 2 | . 2 1 . . Low Security (%) 25 | 100 8 46 . 100 Level 1 71 | . 86 53 . . Level 2 2 | . 4 . . . Level 3 . | . . . . . Level 4 . | . . . . . Level 5 . | . . . . . High Security . | . . . . . Max Security . | . . . . . Squads Dispatched 4 | . 4 . . . Investigation 3 | . 3 . . . Extermination . | . . . . . Reinforcement 1 | . 1 . . . Assault . | . . . . . Garrison . | . . . . . Intercept . | . . . . . Searches Triggered . | . . . . . Construction Impeded . | . . . . . Haulers Reinforced . | . . . . . Active Scanning Responses . | . . . . . Cargo Convoy Interrupts . | . . . . . Stealth | -11 -10 -10 -10 -9 --------- Run | Scr Mat Min Exi Min Distress Signals . | . . . . . Communications Jammed . | . . . . . Distress Signals . | . . . . . Times Spotted 30 | . 22 5 . 3 Peak Tracking Total 4 | . 4 2 . 3 Tactical Retreats 1 | . 1 . . . Traps | -11 -10 -10 -10 -9 ------- Run | Scr Mat Min Exi Min Traps Triggered 2 | . 2 . . . Indirectly . | . . . . . Trap Hack Attempts . | . . . . . Triggered . | . . . . . Disarmed . | . . . . . Reprogrammed . | . . . . . Reused . | . . . . . Traps Extracted . | . . . . . Installed . | . . . . . Triggered . | . . . . . Machines | -11 -10 -10 -10 -9 ---------- Run | Scr Mat Min Exi Min Machines Disabled 4 | . 3 1 . . Max in Single Turn 1 | . 1 1 . . Machines Sabotaged . | . . . . . Garrisons Compromised . | . . . . . Overloaded Fab Kills . | . . . . . Hacking | -11 -10 -10 -10 -9 --------- Run | Scr Mat Min Exi Min Machines Accessed 9 | . 8 . 1 . Terminals 7 | . 7 . . . Fabricators . | . . . . . Repair Stations . | . . . . . Recycling Units 1 | . 1 . . . Scanalyzers . | . . . . . Garrison Access . | . . . . . Total Hacks 31 | . 30 . 1 . Successful 16 | . 15 . 1 . Failed 15 | . 15 . . . Catastrophic 1 | . 1 . . . Database Lockouts . | . . . . . Manual 25 | . 25 . . . Terminals 26 | . 26 . . . Fabricators . | . . . . . Repair Stations . | . . . . . Recycling Units 4 | . 4 . . . Scanalyzers . | . . . . . Garrison Access . | . . . . . Terminal Hacks 8 | . 7 . 1 . Record 1 | . . . 1 . Robot Analysis 3 | . 3 . . . Terminal Index 2 | . 2 . . . Locate Traps 2 | . 2 . . . Fabricator Hacks . | . . . . . Repair Station Hacks . | . . . . . Recycling Unit Hacks . | . . . . . Scanalyzer . | . . . . . Garrison Access Hacks . | . . . . . Unauthorized Hacks 8 | . 8 . . . Terminals 7 | . 7 . . . Botnet 5 | . 5 . . . Operators 2 | . 2 . . . Fabricators . | . . . . . Repair Stations . | . . . . . Recycling Units 1 | . 1 . . . Tunnel 1 | . 1 . . . Scanalyzers . | . . . . . Garrison Access . | . . . . . Data Cores Recovered . | . . . . . Used . | . . . . . Hacking Detections 8 | . 8 . . . Full Trace Events . | . . . . . Feedback Events . | . . . . . Feedback Blocked . | . . . . . Robot Schematics Acquired . | . . . . . Robots Built . | . . . . . Authchips . | . . . . . Time . | . . . . . Total Robot Build Rating . | . . . . . Part Schematics Acquired . | . . . . . Parts Built . | . . . . . Authchips . | . . . . . Time . | . . . . . Total Part Build Rating . | . . . . . Parts Repaired . | . . . . . Time . | . . . . . Parts Recycled . | . . . . . Recycled Matter . | . . . . . Retrieved Matter . | . . . . . Retrieved Components . | . . . . . Parts Scanalyzed . | . . . . . Part Schematics Acquired . | . . . . . Parts Damaged . | . . . . . Bothacking | -11 -10 -10 -10 -9 ------------ Run | Scr Mat Min Exi Min Used RIF Installer . | . . . . . Robots Hacked . | . . . . . Non-combat . | . . . . . Combat . | . . . . . Robot Hacks Applied . | . . . . . Relay Couplers Released . | . . . . . Fabnet Peak Effective % . | . . . . . Robots Rewired . | . . . . . Allies Hacked . | . . . . . Hacks Repelled . | . . . . . Allies | -11 -10 -10 -10 -9 -------- Run | Scr Mat Min Exi Min Total Allies . | . . . . . Largest Group . | . . . . . Highest-Rated Group . | . . . . . Highest-Rated Ally . | . . . . . Total Orders . | . . . . . Ally Attacks . | . . . . . Total Damage . | . . . . . Kills . | . . . . . Allies Corrupted . | . . . . . Allies Melted . | . . . . . Intel | -11 -10 -10 -10 -9 ------- Run | Scr Mat Min Exi Min Robot Analysis Total 3 | . 3 . . . Derelict Logs Recovered 1 | . . 1 . . Drone Launches . | . . . . . Drone Recoveries . | . . . . . Exploration | -11 -10 -10 -10 -9 ------------- Run | Scr Mat Min Exi Min Turns Passed 2221 | 96 1267 654 198 6 Spaces Moved 1321 | 62 623 484 152 . Core 16 | 11 5 . . . Treads 581 | 51 530 . . . Legs 1 | . 1 . . . Wheels 723 | . 87 484 152 . Hover . | . . . . . Flight . | . . . . . Fastest Speed 50 | 50 100 130 130 . Average Speed 142 | 140 155 130 130 . Slowest Speed 400 | 160 400 130 130 . Overloaded Moves . | . . . . . Propulsion Burnouts . | . . . . . Robots Hopped . | . . . . . Cave-ins Triggered . | . . . . . Exploration Rate (%) 50 | 5 96 97 53 2 Regions Visited 4 Branch Regions 3 Pre-discovered Areas 3 | . 1 1 1 . Known Exits Taken . | . . . . . Unknown Exits Taken 4 | 1 1 1 1 . Scrap Searched 2 | . . 2 . . Spaces Dug 2 | . 2 . . . Terrain Destroyed 104 | . 54 33 . 17 Melee 2 | . 2 . . . Projectile . | . . . . . AOE 102 | . 52 33 . 17 Terrain Rammed . | . . . . . Walls Destroyed . | . . . . . Machines Disabled . | . . . . . Actions | -11 -10 -10 -10 -9 --------- Run | Scr Mat Min Exi Min Total 1531 | 68 805 502 152 4 Wait 88 | . 87 1 . . Move 1317 | 61 622 483 151 . Hop . | . . . . . Pick Up 23 | 1 16 5 1 . Fast Attach 14 | 6 7 1 . . Attach 5 | . 3 2 . . Detach . | . . . . . Swap 7 | . 3 3 . 1 Drop 5 | . 3 2 . . Fire 46 | . 39 4 . 3 Melee 23 | . 22 1 . . Ram . | . . . . . Kick . | . . . . . Crush 3 | . 3 . . . Escape Stasis . | . . . . . Rewire . | . . . . . Trap . | . . . . . Miscellaneous . | . . . . . Route ------- -11/Scrapyard -10/Materials (discovered 5 exits: [*Mat x3] / [*Min x2]) -10/Mines (discovered 3 exits: [*Mat x2] / *Exi) -10/Exiles (discovered 2 exits: [*Min x2]) -9/Mines History --------- Turn | Location | Event 5 | -11/Scrapyard | Discovered new exit (range 15) 97 | -11/Scrapyard | Entered Materials 97 | -10/Materials | Discovered new exit (range 7) 301 | -10/Materials | Build established: Mutant 462 | -10/Materials | Discovered new exit (range 15) 690 | -10/Materials | Discovered new exit (range 15) 916 | -10/Materials | Discovered new exit (range 11) 1127 | -10/Materials | Discovered new exit (range 14) 1364 | -10/Materials | Entered Mines 1415 | -10/Mines | Core integrity fell below 50% 1475 | -10/Mines | Discovered new exit (range 15) 1532 | -10/Mines | Met a Derelict bent on vengeance 1826 | -10/Mines | A weapon hastily lodged in a ceiling crevice suddenly fell to the ground 1868 | -10/Mines | Discovered new exit (range 14) 1938 | -10/Mines | Learned location of Zion (-7) 1949 | -10/Mines | Deemed a non-threat by the Exiles lab entrance 2013 | -10/Mines | Discovered new exit (range 5) 2018 | -10/Mines | Entered Exiles 2035 | -10/Exiles | Discovered new exit (range 15) 2051 | -10/Exiles | Met 8R-AWN 2072 | -10/Exiles | Met EX-HEX 2122 | -10/Exiles | Met EX-DEC 2205 | -10/Exiles | Discovered new exit (range 10) 2216 | -10/Exiles | Entered Mines 2217 | -9/Mines | Assembled infested the area 2220 | -9/Mines | Core integrity fell below 20% 2222 | -9/Mines | Destroyed self with Grenade Launcher Last Messages --------------- PINNED - TO ALL TESTERS: Stay away from Zion. Imprinter means us harm and is serious about it. World map confirmed: -7/Zion. 02182_ Acquired Humpback. 02205_ EXIT=FOUND LOCATION=UNKNOWN GOAL=ESCAPE 02217_ ALERT: Infestation in the mines, dispatching Demolisher response squad. 02218_ Lgt. Nuclear Core destroyed. 02218_ Destroyed Lgt. Nuclear Core. 02218_ Com. Wheel destroyed. 02218_ Destroyed Com. Wheel. 02218_ G-34 Mercenary destroyed. 02222_ L-31 Rogue destroyed. 02222_ G-34 Mercenary destroyed. 02222_ Com. Wheel destroyed. 02222_ Destroyed Com. Wheel. 02222_ Grenade Launcher destroyed. 02222_ Destroyed Grenade Launcher. Map ----- +----------------------------------------------------+ | ?????????????????????????????????? | | ?????????????????????????????????? | | ?????????????????????????????????? | | ?????????????????????????????????? | | ?????????????????????????????????? | | ?????????????????????????????????? | | ?????????????????????????????????? | | ?????????????????????????????????? | | ?????????????????????????????????? | | ?????????????????????????????????? | | ?????????????????????????????????? | | ?????????????????????????????????? | | ?????????????????????????????????? | | ?????????????????????????????????? | | ?????????????????????????????????? | | ?????????????????????????????????? | | ?????????????????????????????????? | | ?????????????????????????????????? | | ?????????????????????????????????? | | ?????????????????????????????????? | | ??????########?#?????????????????? | | ??????# # #?????????????????? | | ?????## ??????????????????? | | ?????# #???????????????????? | | ?????# #???????????????????? | | ?????# [@ #???????????????????? | | ?????# %%* #???????????????????? | | ?????## =/ #???????????????????? | | ?????# #???????????????????? | | ?????#########???????????????????? | | ?????????????????????????????????? | | ?????????????????????????????????? | | ?????????????????????????????????? | | ?????????????????????????????????? | | ?????????????????????????????????? | | ?????????????????????????????????? | | ?????????????????????????????????? | | ?????????????????????????????????? | | ?????????????????????????????????? | | ?????????????????????????????????? | | ?????????????????????????????????? | | ?????????????????????????????????? | | ?????????????????????????????????? | | ?????????????????????????????????? | | ?????????????????????????????????? | | ?????????????????????????????????? | | ?????????????????????????????????? | | ?????????????????????????????????? | | ?????????????????????????????????? | | ?????????????????????????????????? | +----------------------------------------------------+ Best States ------------- Heat Dissipation 25 Energy Generation 14 Energy Capacity 250 Matter Stores 300 Matter Capacity 300 Sight Range 16 Terrain Scan Density 10 Core Shielding 20 Evasion (%) 50 Recoil Reduction 2 Item Schematics ----------------- None Robot Schematics ------------------ None Fabricated ------------ Nothing Alien Tech Used ----------------- None Achievements -------------- None Challenges ------------ None Game ------ Seed OpticalRegenerativeWarhead Manual? 0 Play Time 00:08:09 Cumulative 218.3 hours Start 2022.03.24 @ 22:42:21 End 2022.03.25 @ 18:02:51 Sessions 3 Manual Loads 0 Difficulty Rogue Special Mode None Game No. 323 Rogue 301 Adventurer 4 Explorer 18 Win Type - Total 10 Types 8/0/0/2/0/0/0/0/0 Lore% 69 Gallery% 87 Achievement% 71 Wizard Run 0 Options --------- ASCII 0 Keyboard 1 Movement Numpad Keybinds 0 Fullscreen 1 Font 18/SmallcapsGlow Map View 76x50 Tactical HUD 1 Map Filters NONE Filters NONE Steam 1 RUN: affb1b9f-8f0d-4268-83ff-8dbd7d1aa405